fUST/lending_fUST_20250306
["ID","MTS","AMOUNT","RATE_DAILY","PERIOD"]
[355556777,1741272634050,-500.0,0.00038172,9]
[355556778,1741272634064,-500.0,0.00038172,9]
[355556779,1741272634075,-500.0,0.00038172,9]
[355556780,1741272634086,-500.0,0.00038172,9]
[355556781,1741272634098,-500.0,0.00038172,9]
[355556782,1741272634109,-112.53559633,0.00038173,5]
[355556783,1741272634437,-387.46440367,0.00038173,5]
[355556784,1741272634449,-500.0,0.00038173,5]
[355556785,1741272634460,-500.0,0.00038173,5]
[355556786,1741272634475,-160.0,0.00038173,5]
[355556787,1741272634486,-173.03789655,0.00038173,5]
[355556788,1741272634498,-460.38177288,0.00038173,5]
[355556789,1741272634508,-313.86610187,0.00038173,5]
[355556790,1741272634518,-161.0,0.00038173,5]
[355556791,1741272634528,-500.0,0.00038173,5]
[355556792,1741272634539,-500.0,0.00038173,5]
[355556793,1741272634550,-500.0,0.00038173,5]
[355556794,1741272634560,-158.67182155,0.00038173,5]
[355556795,1741272634569,-213.885,0.00038179,50]
[355556796,1741272634579,-150.5,0.00038179,120]
[355556797,1741272634590,-291.35,0.0003818,120]
[355556798,1741272634600,-500.0,0.0003818,5]
[355556799,1741272634610,-569.38,0.00038188,9]
[355556800,1741272634619,-979.05,0.00038188,9]
[355556801,1741272634630,-979.05,0.00038188,9]
[355556802,1741272634640,-979.05,0.00038188,9]
[355556803,1741272634650,-979.05,0.00038188,9]
[355556804,1741272634660,-979.05,0.00038188,9]
[355556805,1741272634670,-979.05,0.00038188,9]
[355556806,1741272634681,-979.05,0.00038188,9]
[355556807,1741272634690,-979.05,0.00038188,9]
[355556808,1741272634700,-979.05,0.00038188,9]
[355556809,1741272634710,-979.05,0.00038188,9]
[355556810,1741272634725,-979.05,0.00038188,9]
[355556811,1741272634737,-979.05,0.00038188,9]
[355556812,1741272634747,-979.05,0.00038188,9]
[355556813,1741272634758,-979.05,0.00038188,9]
[355556814,1741272634768,-979.05,0.00038188,9]
[355556815,1741272634779,-979.05,0.00038188,9]
[355556816,1741272634789,-979.05,0.00038188,9]
[355556817,1741272634800,-979.05,0.00038188,9]
[355556818,1741272634811,-750.68638291,0.00038188,9]
[355556830,1741272637751,-500.0,0.00037478,2]
[355556831,1741272637762,-500.0,0.00037488,9]
[355556832,1741272637773,-500.0,0.00037752,2]
[355556833,1741272637785,-500.0,0.00037762,9]
[355556834,1741272637795,-500.0,0.00038026,2]
[355556835,1741272637806,-500.0,0.00038036,9]
[355556836,1741272637817,-2375.11,0.00038168,9]
[355556837,1741272637827,-228.36361709,0.00038188,9]
[355556838,1741272637838,-979.05,0.00038188,9]
[355556839,1741272637849,-979.05,0.00038188,9]
[355556840,1741272637859,-979.05,0.00038188,9]
[355556841,1741272637870,-979.05,0.00038188,9]
[355556842,1741272637881,-979.090611,0.00038188,9]
[355556843,1741272637890,-500.0,0.00038188,9]
[355556844,1741272637898,-380.6905736,0.00038188,9]
[355556845,1741272637918,-479.6894264,0.00038188,9]
[355556846,1741272637926,-500.0,0.00038188,9]
[355556847,1741272638200,-989.07,0.00038188,9]
[355556848,1741272638210,-500.0,0.00038188,9]
[355556849,1741272638220,-1281.2405736,0.00038189,30]
[355556850,1741272638239,-550.0115803,0.00038189,30]
[355556851,1741272638252,-427.88173484,0.00038189,30]
[355556852,1741272638264,-4469.4851948,0.00038189,30]
[355556858,1741272640121,-3026.45,0.00038172,9]
[355556859,1741272640130,-14850.35011671,0.00038189,30]
[355556860,1741272640142,-1099.82126819,0.00038189,30]
[355556881,1741272643444,-1140.86428045,0.00038072,2]
[355556882,1741272643454,-500.0,0.00038173,5]
[355556883,1741272643464,-42948.72866556,0.00038189,30]
[355556897,1741272645886,-332.74441476,0.00038167,2]
[355556899,1741272645896,-500.0,0.00038172,9]
[355556900,1741272645906,-1349.3118171,0.00038189,30]
[355556901,1741272645919,-5226.5000002,0.00038189,30]
[355556903,1741272820109,223.0,0.00016022,2]
[355556972,1741273832259,-160.0,0.00034336,2]
[355556973,1741273832269,-166.464066,0.0003589,2]
[355556974,1741273832279,-151.0,0.00036,18]
[355556975,1741273832289,-152.93744701,0.00037335,104]
[355556976,1741273832299,-150.28284063,0.00037373,2]
[355556977,1741273832309,-150.28284062,0.00037375,2]
[355556978,1741273832319,-150.28284062,0.00037376,2]
[355556979,1741273832329,-150.28284062,0.00037378,2]
[355556980,1741273832339,-310.4322426,0.000374,120]
[355556981,1741273832349,-210.7395578,0.00037435,4]
[355556982,1741273832359,-154.25,0.00037457,2]
[355556983,1741273832369,-154.25,0.00037457,2]
[355556984,1741273832378,-250.42161421,0.00037457,3]
[355556985,1741273832395,-162.55838579,0.00037457,3]
[355556986,1741273832405,-500.0,0.00037466,15]
[355556987,1741273832415,-500.0,0.00037466,15]
[355556988,1741273832425,-392.07108921,0.00037466,15]
[355556989,1741273832435,-500.0,0.00037466,2]
[355556990,1741273832449,-419.64679958,0.00037466,15]
[355556991,1741273832459,-500.0,0.00037466,15]
[355556992,1741273832468,-500.0,0.00037466,2]
[355556993,1741273832482,-202.48595174,0.00037466,15]
[355556994,1741273832492,-500.0,0.00037466,2]
[355556995,1741273832502,-539.96877015,0.00037466,15]
[355556996,1741273832513,-500.0,0.00037466,2]
[355556997,1741273832523,-500.0,0.00037466,2]
[355556998,1741273832533,-500.0,0.00037466,2]
[355556999,1741273832543,-500.0,0.00037466,2]
[355557000,1741273832556,-500.0,0.00037466,2]
[355557001,1741273832567,-189.29327345,0.00037466,2]
[355557002,1741273832576,-500.0,0.00037466,2]
[355557003,1741273832586,-500.0,0.00037466,2]
[355557004,1741273832596,-500.0,0.00037466,2]
[355557005,1741273832605,-499.99999999,0.00037466,2]
[355557006,1741273832615,-391.0,0.00037467,2]
[355557007,1741273832625,-92852.4647385,0.00037467,3]
[355557008,1741273832634,-46426.2323692,0.00037468,3]
[355557009,1741273832644,-500.0,0.00037473,5]
[355557010,1741273832653,-198.0,0.00037473,5]
[355557011,1741273832663,-500.0,0.00037473,5]
[355557012,1741273832672,-160.20626189,0.00037473,5]
[355557013,1741273832682,-170.50611239,0.00037473,5]
[355557014,1741273832693,-500.0,0.00037473,5]
[355557015,1741273832703,-500.0,0.00037473,5]
[355557016,1741273832712,-500.0,0.00037473,5]
[355557017,1741273832722,-500.0,0.00037473,2]
[355557018,1741273832732,-500.0,0.00037473,2]
[355557019,1741273832742,-500.0,0.00037473,5]
[355557020,1741273832753,-500.0,0.00037473,5]
[355557021,1741273832764,-7577.03,0.00037475,9]
[355557022,1741273832774,-2170.35,0.00037475,9]
[355557023,1741273832784,-1000.0,0.00037475,7]
[355557024,1741273832793,-1554.23,0.00037475,9]
[355557025,1741273832803,-1246.14,0.00037475,9]
[355557026,1741273832814,-1290.19,0.00037475,9]
[355557027,1741273832823,-500.0,0.00037475,9]
[355557028,1741273832833,-500.0,0.00037475,9]
[355557029,1741273832843,-2900.35,0.00037476,9]
[355557030,1741273832852,-541.61,0.00037476,9]
[355557031,1741273832861,-4001.65,0.00037476,9]
[355557032,1741273832871,-2386.06,0.00037476,9]
[355557033,1741273832880,-500.0,0.00037476,9]
[355557034,1741273832890,-500.0,0.00037476,9]
[355557035,1741273832900,-4164.55,0.00037476,9]
[355557036,1741273832909,-5384.72,0.00037476,9]
[355557037,1741273832920,-6808.26,0.00037476,9]
[355557038,1741273832930,-2217.48,0.00037476,9]
[355557039,1741273832941,-500.0,0.00037476,9]
[355557040,1741273832951,-1234.57,0.00037476,9]
[355557041,1741273832961,-997.03,0.00037476,9]
[355557042,1741273832971,-3024.41,0.00037476,9]
[355557043,1741273832981,-2271.45,0.00037476,9]
[355557044,1741273832991,-1078.75,0.00037476,9]
[355557045,1741273833001,-3773.98,0.00037476,9]
[355557046,1741273833011,-500.0,0.00037476,9]
[355557047,1741273833021,-8720.9,0.00037476,9]
[355557048,1741273833031,-500.0,0.00037476,9]
[355557049,1741273833042,-1988.24,0.00037476,9]
[355557050,1741273833052,-962.89,0.00037477,9]
[355557051,1741273833062,-500.0,0.00037477,9]
[355557052,1741273833072,-9999.0,0.00037477,2]
[355557053,1741273833083,-500.0,0.00037477,9]
[355557054,1741273833093,-500.0,0.00037477,2]
[355557055,1741273833104,-500.0,0.00037477,9]
[355557056,1741273833114,-1999.21,0.00037477,9]
[355557057,1741273833124,-500.0,0.00037477,9]
[355557058,1741273833140,-500.0,0.00037477,9]
[355557059,1741273833150,-500.0,0.00037477,9]
[355557060,1741273833160,-500.0,0.00037477,9]
[355557061,1741273833171,-500.0,0.00037477,9]
[355557062,1741273833182,-500.0,0.00037477,9]
[355557063,1741273833192,-500.0,0.00037477,9]
[355557064,1741273833202,-500.0,0.00037477,9]
[355557065,1741273833212,-232.93293388,0.00037477,9]
[355557066,1741273833222,-500.0,0.00037477,9]
[355557067,1741273833232,-743.57,0.00037477,9]
[355557068,1741273833242,-500.0,0.00037477,9]
[355557069,1741273833252,-500.0,0.00037477,9]
[355557070,1741273833262,-676.1,0.00037477,9]
[355557071,1741273833275,-500.0,0.00037477,9]
[355557072,1741273833285,-500.0,0.00037477,9]
[355557073,1741273833295,-588.98,0.00037477,9]
[355557074,1741273833306,-1967.67,0.00037477,9]
[355557075,1741273833316,-500.0,0.00037477,9]
[355557076,1741273833326,-500.0,0.00037477,9]
[355557077,1741273833336,-500.0,0.00037477,9]
[355557078,1741273833346,-500.0,0.00037477,9]
[355557079,1741273833357,-1376.17,0.00037477,9]
[355557080,1741273833367,-623.06386993,0.00037477,9]
[355557081,1741273833377,-500.0,0.00037477,9]
[355557082,1741273833387,-500.0,0.00037477,9]
[355557083,1741273833398,-500.0,0.00037477,9]
[355557084,1741273833410,-614.54244473,0.00037477,9]
[355557085,1741273833420,-500.0,0.00037477,9]
[355557086,1741273833430,-500.0,0.00037477,9]
[355557087,1741273833443,-545.32020187,0.00037477,9]
[355557088,1741273833453,-1415.17,0.00037477,9]
[355557089,1741273833465,-500.0,0.00037477,9]
[355557090,1741273833478,-500.0,0.00037477,9]
[355557091,1741273833489,-500.0,0.00037477,9]
[355557092,1741273833499,-500.0,0.00037477,9]
[355557093,1741273833511,-965.35,0.00037477,9]
[355557094,1741273833522,-534.2,0.00037477,9]
[355557095,1741273833532,-500.0,0.00037477,9]
[355557096,1741273833542,-500.0,0.00037477,9]
[355557097,1741273833554,-500.0,0.00037477,9]
[355557098,1741273833565,-500.0,0.00037477,9]
[355557099,1741273833576,-500.0,0.00037477,9]
[355557100,1741273833587,-500.0,0.00037477,9]
[355557101,1741273833597,-500.0,0.00037477,9]
[355557102,1741273833607,-500.0,0.00037477,9]
[355557103,1741273833617,-500.0,0.00037477,9]
[355557104,1741273833627,-500.0,0.00037477,9]
[355557105,1741273833637,-500.0,0.00037477,9]
[355557106,1741273833647,-1167.51,0.00037477,9]
[355557107,1741273833658,-1075.99,0.00037477,9]
[355557108,1741273833668,-500.0,0.00037477,9]
[355557109,1741273833678,-500.0,0.00037477,9]
[355557110,1741273833688,-1829.08,0.00037477,9]
[355557111,1741273833701,-500.0,0.00037477,9]
[355557112,1741273833711,-964.55,0.00037477,9]
[355557113,1741273833721,-500.0,0.00037477,9]
[355557114,1741273833732,-500.0,0.00037477,9]
[355557115,1741273833743,-636.67,0.00037477,9]
[355557116,1741273833753,-500.0,0.00037477,9]
[355557117,1741273833763,-500.0,0.00037477,9]
[355557118,1741273833773,-500.0,0.00037477,9]
[355557119,1741273833783,-1064.07,0.00037477,9]
[355557120,1741273833792,-506.40814268,0.00037477,9]
[355557121,1741273833802,-911.44,0.00037477,9]
[355557122,1741273833812,-500.0,0.00037477,9]
[355557123,1741273833821,-200.87,0.00037477,9]
[355557124,1741273833831,-500.0,0.00037477,9]
[355557125,1741273833841,-359.96817815,0.00037477,9]
[355557126,1741273833851,-647.06,0.00037477,9]
[355557127,1741273833862,-500.0,0.00037477,9]
[355557128,1741273833875,-1009.54,0.00037477,9]
[355557129,1741273833885,-500.0,0.00037477,9]
[355557130,1741273833895,-500.0,0.00037477,9]
[355557131,1741273833905,-500.0,0.00037477,9]
[355557132,1741273833916,-500.0,0.00037477,9]
[355557133,1741273833925,-546.99,0.00037477,9]
[355557134,1741273833934,-500.0,0.00037477,9]
[355557135,1741273833947,-500.0,0.00037477,9]
[355557136,1741273833956,-3045.28350608,0.00037477,120]
[355557137,1741273833965,-500.0,0.00037477,9]
[355557138,1741273833975,-500.0,0.00037477,9]
[355557139,1741273833985,-523.46587294,0.00037477,9]
[355557140,1741273833995,-500.0,0.00037477,9]
[355557141,1741273834004,-2965.14,0.00037477,9]
[355557142,1741273834014,-500.0,0.00037477,9]
[355557143,1741273834024,-1071.92,0.00037477,9]
[355557144,1741273834034,-500.0,0.00037477,9]
[355557145,1741273834044,-500.0,0.00037477,9]
[355557146,1741273834054,-527.28,0.00037477,9]
[355557147,1741273834064,-500.0,0.00037477,9]
[355557148,1741273834074,-1547.49,0.00037477,9]
[355557149,1741273834085,-676.27,0.00037477,9]
[355557150,1741273834096,-500.0,0.00037477,9]
[355557151,1741273834105,-663.5,0.00037477,9]
[355557152,1741273834115,-500.0,0.00037477,9]
[355557153,1741273834125,-2276.14,0.00037477,9]
[355557154,1741273834136,-500.0,0.00037477,9]
[355557155,1741273834147,-1193.36,0.00037477,9]
[355557156,1741273834157,-500.0,0.00037477,9]
[355557157,1741273834168,-500.0,0.00037477,9]
[355557158,1741273834178,-2481.19,0.00037477,9]
[355557159,1741273834189,-500.0,0.00037477,9]
[355557160,1741273834202,-500.0,0.00037477,9]
[355557161,1741273834212,-2880.5,0.00037477,9]
[355557162,1741273834222,-500.0,0.00037477,9]
[355557163,1741273834232,-500.0,0.00037477,9]
[355557164,1741273834242,-500.0,0.00037477,9]
[355557165,1741273834252,-500.0,0.00037477,9]
[355557166,1741273834262,-2612.63,0.00037477,9]
[355557167,1741273834272,-762.7,0.00037477,9]
[355557168,1741273834282,-500.0,0.00037477,9]
[355557169,1741273834292,-500.0,0.00037477,9]
[355557170,1741273834302,-500.0,0.00037477,9]
[355557171,1741273834312,-517.46802703,0.00037477,9]
[355557172,1741273834323,-500.0,0.00037477,9]
[355557173,1741273834334,-1556.98,0.00037477,9]
[355557174,1741273834346,-500.0,0.00037477,9]
[355557175,1741273834356,-500.0,0.00037477,9]
[355557176,1741273834366,-500.0,0.00037477,9]
[355557177,1741273834376,-1543.96,0.00037477,9]
[355557178,1741273834386,-2714.29,0.00037477,9]
[355557179,1741273834396,-642.65855435,0.00037477,9]
[355557180,1741273834407,-500.0,0.00037477,9]
[355557181,1741273834418,-500.0,0.00037477,9]
[355557182,1741273834428,-500.0,0.00037477,9]
[355557183,1741273834439,-640.04,0.00037477,9]
[355557184,1741273834452,-1047.85,0.00037477,9]
[355557185,1741273834463,-824.53,0.00037477,9]
[355557186,1741273834476,-607.15,0.00037477,9]
[355557187,1741273834487,-703.92,0.00037477,9]
[355557188,1741273834497,-500.0,0.00037477,9]
[355557189,1741273834507,-500.0,0.00037477,9]
[355557190,1741273834516,-500.0,0.00037477,9]
[355557191,1741273834526,-695.06,0.00037477,9]
[355557192,1741273834535,-1032.54,0.00037477,9]
[355557193,1741273834545,-1340.73,0.00037477,9]
[355557194,1741273834555,-500.0,0.00037477,9]
[355557195,1741273834565,-500.0,0.00037477,9]
[355557196,1741273834574,-500.0,0.00037477,9]
[355557197,1741273834583,-500.0,0.00037477,9]
[355557198,1741273834593,-500.0,0.00037477,9]
[355557199,1741273834603,-500.0,0.00037477,9]
[355557200,1741273834613,-710.62,0.00037477,9]
[355557201,1741273834622,-1192.07,0.00037477,9]
[355557202,1741273834632,-500.0,0.00037477,9]
[355557203,1741273834642,-500.0,0.00037477,9]
[355557204,1741273834652,-500.0,0.00037477,9]
[355557205,1741273834867,-561.03,0.00037477,9]
[355557206,1741273834877,-610.56030417,0.00037477,9]
[355557207,1741273834950,-405.63969583,0.00037477,9]
[355557208,1741273834960,-1847.11,0.00037477,9]
[355557209,1741273834970,-500.0,0.00037477,9]
[355557210,1741273834980,-500.0,0.00037477,9]
[355557211,1741273834989,-999.51,0.00037477,9]
[355557212,1741273834999,-500.0,0.00037477,9]
[355557213,1741273835008,-500.0,0.00037477,9]
[355557214,1741273835018,-687.89,0.00037477,9]
[355557215,1741273835028,-762.69,0.00037477,9]
[355557216,1741273835037,-500.0,0.00037477,9]
[355557217,1741273835047,-501.7408898,0.00037477,9]
[355557218,1741273835057,-500.0,0.00037477,9]
[355557219,1741273835068,-947.85,0.00037477,9]
[355557220,1741273835078,-500.0,0.00037477,7]
[355557221,1741273835089,-1695.59,0.00037477,9]
[355557222,1741273835099,-1099.59,0.00037477,9]
[355557223,1741273835109,-500.0,0.00037477,9]
[355557224,1741273835119,-500.0,0.00037477,9]
[355557225,1741273835128,-513.46974351,0.00037477,9]
[355557226,1741273835138,-500.0,0.00037477,9]
[355557227,1741273835147,-2196.21,0.00037477,9]
[355557228,1741273835157,-500.0,0.00037477,9]
[355557229,1741273835166,-500.0,0.00037477,9]
[355557230,1741273835176,-500.0,0.00037477,9]
[355557231,1741273835186,-5634.81626481,0.00037477,3]
[355557272,1741273838090,-500.0,0.00037473,5]
[355557274,1741273838101,-155.50391997,0.00037473,5]
[355557275,1741273838111,-125.76901048,0.00037475,15]
[355557277,1741273838157,-500.0,0.00037466,2]
[355557278,1741273838167,-320.11995158,0.00037475,15]
[355557279,1741273838177,-350.56645617,0.00037475,15]
[355557280,1741273838187,-500.0,0.00037476,9]
[355557281,1741273838198,-4627.51913959,0.00037477,3]
[355557295,1741273840298,-408.208913,0.00037466,2]
[355557297,1741273840308,-25.40019775,0.00037477,9]
[355557299,1741273840319,-474.59980225,0.00037477,9]
[355557301,1741273840329,-44619.40019775,0.00037477,3]
[355557302,1741273840341,-3391.83232607,0.00037477,3]
[355557330,1741273843219,-500.01,0.00037475,9]
[355557331,1741273843231,-3334.9,0.00037475,9]
[355557332,1741273843240,-500.0,0.00037476,9]
[355557333,1741273843250,-503.5439522,0.00037477,9]
[355557334,1741273843259,-4681.90043701,0.00037477,3]
[355557394,1741273845976,-500.0,0.00037477,9]
[355557396,1741273845986,-10172.0148919,0.00037477,3]
[355557400,1741274101697,291.0,0.00028,2]
[355557424,1741274913940,61443.71054524,0.000145,2]
[355557484,1741275032332,-3324.85160009,0.0003,60]
[355557486,1741275032391,-1827.20213312,0.0003,60]
[355557487,1741275032405,-186.380454,0.00034902,2]
[355557488,1741275032417,-625.39027942,0.0003491,2]
[355557489,1741275032427,-400.0,0.00035259,2]
[355557490,1741275032438,-189.9571408,0.0003535,2]
[355557491,1741275032447,-189.583012,0.00035789,120]
[355557492,1741275032457,-158.523181,0.00035822,60]
[355557493,1741275032466,-166.464066,0.0003589,2]
[355557494,1741275032476,-902.21086937,0.000369,7]
[355557495,1741275032486,-151.0,0.00037,19]
[355557496,1741275032495,-11549.42139075,0.00037,5]
[355557497,1741275032511,-17091.70754725,0.00037,5]
[355557498,1741275032521,-844.90131237,0.00037,2]
[355557499,1741275032531,-1902.92429578,0.00037253,2]
[355557500,1741275032540,-168.06,0.00037353,3]
[355557501,1741275032550,-504.23,0.00037353,3]
[355557503,1741275032559,-500.0,0.00037354,2]
[355557504,1741275032569,-500.0,0.00037354,15]
[355557505,1741275032579,-500.0,0.00037354,15]
[355557506,1741275032590,-500.0,0.00037354,2]
[355557507,1741275032600,-500.0,0.00037354,2]
[355557508,1741275032610,-500.0,0.00037354,15]
[355557509,1741275032619,-500.0,0.00037354,2]
[355557510,1741275032629,-500.0,0.00037354,15]
[355557511,1741275032639,-500.0,0.00037354,15]
[355557512,1741275032649,-500.0,0.00037354,2]
[355557513,1741275032658,-500.0,0.00037354,15]
[355557514,1741275032669,-500.0,0.00037354,2]
[355557515,1741275032678,-500.0,0.00037354,15]
[355557516,1741275032687,-500.0,0.00037354,2]
[355557517,1741275032697,-500.0,0.00037354,15]
[355557518,1741275032707,-500.0,0.00037354,2]
[355557519,1741275032716,-500.0,0.00037354,15]
[355557520,1741275032726,-500.0,0.00037354,2]
[355557521,1741275032735,-500.0,0.00037354,15]
[355557522,1741275032745,-626.54797219,0.00037354,15]
[355557523,1741275032754,-500.0,0.00037354,2]
[355557524,1741275032763,-500.0,0.00037354,2]
[355557525,1741275032772,-500.0,0.00037354,15]
[355557526,1741275032781,-483.55316952,0.00037354,2]
[355557547,1741275043307,-156.3205037,0.000362,98]
[355557548,1741275043317,-16.44683048,0.00037354,2]
[355557549,1741275043327,-500.0,0.00037354,2]
[355557550,1741275043336,-388.59952302,0.00037354,2]
[355557551,1741275043347,-111.40047698,0.00037354,2]
[355557552,1741275043356,-175.97916622,0.00037354,2]
[355557559,1741275046236,-156.3205037,0.00036327,98]
[355557560,1741275046245,-324.02083378,0.00037354,2]
[355557561,1741275046255,-500.0,0.00037354,2]
[355557562,1741275046264,-500.0,0.00037354,2]
[355557563,1741275046273,-500.0,0.00037354,2]
[355557564,1741275046282,-500.0,0.00037354,2]
[355557565,1741275046291,-500.0,0.00037354,2]
[355557566,1741275046300,-500.0,0.00037354,2]
[355557567,1741275046309,-500.0,0.00037354,2]
[355557568,1741275046318,-284.45866256,0.00037354,2]
[355557579,1741275444316,5000.0,0.00019,3]
[355557608,1741276155152,-433.33772921,0.000189,2]
[355557609,1741276155173,-179.01,0.00019012,2]
[355557610,1741276155195,-300.0,0.00019021,2]
[355557611,1741276155218,-500.0,0.00019022,2]
[355557612,1741276155241,-453.42681601,0.00019022,2]
[355557674,1741276232762,-300.0,0.00019021,2]
[355557675,1741276232773,-46.57318399,0.00019022,2]
[355557676,1741276232783,-500.0,0.00019022,2]
[355557677,1741276232793,-500.0,0.00019022,2]
[355557678,1741276232803,-908.58648065,0.00019022,2]
[355557680,1741276232812,-500.0,0.00019022,2]
[355557686,1741276233041,-500.0,0.00019022,2]
[355557687,1741276233053,-500.0,0.00019022,2]
[355557688,1741276233063,-500.0,0.00019022,2]
[355557689,1741276233073,-900.0,0.00019022,2]
[355557690,1741276233084,-500.0,0.00019022,2]
[355557691,1741276233094,-500.0,0.00019022,2]
[355557692,1741276233106,-500.0,0.00019022,2]
[355557693,1741276233115,-500.0,0.00019022,2]
[355557694,1741276233125,-500.0,0.00019022,2]
[355557695,1741276233135,-500.0,0.00019022,2]
[355557696,1741276233145,-710.94782736,0.00019022,2]
[355557697,1741276233155,-500.0,0.00019022,2]
[355557698,1741276233167,-677.80573658,0.00019022,2]
[355557699,1741276233180,-122.19426342,0.00019022,2]
[355557700,1741276233191,-500.0,0.00019022,2]
[355557701,1741276233201,-500.0,0.00019022,2]
[355557702,1741276233211,-500.0,0.00019022,2]
[355557703,1741276233222,-500.0,0.00019022,2]
[355557704,1741276233233,-500.0,0.00019022,2]
[355557705,1741276233243,-500.0,0.00019022,2]
[355557706,1741276233254,-500.0,0.00019022,2]
[355557707,1741276233271,-938.88236203,0.00019022,2]
[355557708,1741276233283,-566.18175505,0.00019022,2]
[355557709,1741276233293,-500.0,0.0001915,2]
[355557710,1741276233306,-592.75987409,0.0001915,2]
[355557711,1741276233318,-158.68614533,0.0001915,2]
[355557712,1741276233328,-500.0,0.0001915,2]
[355557713,1741276233339,-500.0,0.0001915,2]
[355557714,1741276233351,-500.0,0.0001915,2]
[355557715,1741276233362,-500.0,0.0001915,2]
[355557716,1741276233372,-160.6905323,0.0001915,2]
[355557717,1741276233382,-500.0,0.0001915,2]
[355557718,1741276233391,-500.03866135,0.0001915,2]
[355557719,1741276233402,-500.0,0.0001915,2]
[355557720,1741276233412,-500.0,0.000192,2]
[355557721,1741276233424,-500.0,0.000192,2]
[355557722,1741276233435,-500.0,0.000192,2]
[355557723,1741276233444,-500.0,0.000192,2]
[355557724,1741276233454,-500.0,0.000192,2]
[355557725,1741276233464,-500.0,0.000192,2]
[355557726,1741276233474,-189.689517,0.000192,2]
[355557727,1741276233484,-500.0,0.000192,2]
[355557728,1741276233494,-500.0,0.000192,2]
[355557729,1741276233504,-190.0,0.000192,2]
[355557730,1741276233514,-500.0,0.000192,2]
[355557731,1741276233523,-500.0,0.000192,2]
[355557732,1741276233533,-500.0,0.000192,2]
[355557733,1741276233543,-500.0,0.000192,2]
[355557734,1741276233554,-500.0,0.000192,2]
[355557735,1741276233564,-500.0,0.000192,2]
[355557736,1741276233574,-500.0,0.000192,2]
[355557737,1741276233584,-500.0,0.000192,2]
[355557738,1741276233594,-500.0,0.000192,2]
[355557739,1741276233604,-500.0,0.000192,2]
[355557740,1741276233615,-500.0,0.000192,2]
[355557741,1741276233625,-500.0,0.000192,2]
[355557742,1741276233635,-500.0,0.000192,2]
[355557743,1741276233645,-500.0,0.000192,2]
[355557744,1741276233655,-500.0,0.000192,2]
[355557745,1741276233667,-164.2310456,0.000192,2]
[355557746,1741276233677,-500.0,0.000192,2]
[355557747,1741276233688,-500.0,0.000192,2]
[355557748,1741276233698,-500.0,0.000192,2]
[355557749,1741276233709,-500.0,0.000192,2]
[355557750,1741276233720,-500.0,0.000192,2]
[355557751,1741276233730,-500.0,0.000192,2]
[355557752,1741276233741,-500.0,0.000192,2]
[355557753,1741276233752,-500.0,0.000192,2]
[355557754,1741276233765,-500.0,0.000192,2]
[355557755,1741276233776,-420.0,0.00020732,2]
[355557756,1741276233787,-1240.91169839,0.00021,2]
[355557757,1741276233797,-500.0,0.00021133,2]
[355557758,1741276233809,-500.0,0.00021133,2]